Cogmind - Beta 12 @@@ ROGUE MODE // 2024.02.27 @ 19:25:38 Player: lnly rvr shp Result: Destroyed by G-34 Mercenary with Small Laser Performance ------------- Evolutions (1) 500 Regions Visited (2) 400 Robots Destroyed (18) 90 Value Destroyed (479) 479 Prototype IDs (4) 80 Alien Tech Used (0) 0 Bonus (0) 0 TOTAL SCORE: 1549 Bonus ------- None Cogmind --------- Core Integrity 0/400 Matter 300/300 Energy 100/100 System Corruption 0% Temperature Cool (6) Movement Core (1350) Ox26 Location -9/Materials Parts ------- > --- POWER (3) -------- (None) > --- PROPULSION (2) --- (None) > --- UTILITY (2) ------ Huge Storage Unit > --- WEAPON (2) ------- (None) > --- INVENTORY (25) --- Shield Generator Medium Laser Mining Claw Peak State ------------ > --- POWER ------------ Backup Power I > --- PROPULSION ------- Aluminum Leg Aluminum Leg > --- UTILITY ---------- Huge Storage Unit Light Armor Plating > --- WEAPON ----------- Medium Laser Mining Claw > --- INVENTORY -------- Ion Engine Light Ion Engine Aluminum Leg Aluminum Leg Shield Generator Shield Generator Medium Laser Medium Laser Light Assault Rifle [Rating: 8] Favorites ----------- Power Backup Power I Engine Backup Power I Propulsion Aluminum Leg Leg Aluminum Leg Utility Huge Storage Unit Storage Huge Storage Unit Protection Light Armor Plating Weapon Medium Laser Energy Gun Medium Laser Ballistic Gun Light Assault Rifle Slashing Weapon Mining Claw Special Melee Weapon Datajack Build | -11 -10 -9 ------- Run | Jun Mat Mat Slots Evolved 2 | . . 2 Power 2 | . . 2 Propulsion . | . . . Utility . | . . . Weapon . | . . . Parts Attached 22 | 3 17 2 Power 1 | . . 1 Engine 1 | . . 1 Core . | . . . Reactor . | . . . Propulsion 7 | 2 5 . Treads . | . . . Leg 7 | 2 5 . Wheel . | . . . Hover . | . . . Flight . | . . . Utility 4 | 1 3 . Device . | . . . Storage 3 | 1 2 . Processor . | . . . Hackware . | . . . Protection 1 | . 1 . Artifact . | . . . Weapon 10 | . 9 1 Energy Gun 6 | . 6 . Energy Cannon . | . . . Ballistic Gun 1 | . 1 . Ballistic Cannon . | . . . Launcher . | . . . Special Weapon . | . . . Impact Weapon . | . . . Slashing Weapon 2 | . 2 . Piercing Weapon . | . . . Special Melee Weapon 1 | . . 1 Unidentified Prototypes . | . . . Parts Lost 10 | . 3 7 Power 2 | . . 2 Propulsion 3 | . 1 2 Utility 2 | . 2 . Weapon 3 | . . 3 Highest Loss Streak 6 | . 1 6 To Critical Strikes . | . . . Average Slot Usage (%) 90 | . 93 63 Engine 13 | . 13 17 Leg 26 | . 27 17 Storage 13 | . 14 11 Protection 7 | . 8 . Energy Gun 22 | . 23 13 Slashing Weapon 3 | . 4 . Naked Turns . | . . . Heaviest Build 88 | 5 88 88 Greatest Support 20 | 20 20 20 Greatest Overweight (x) 8 | . 8 8 Average Overweight (x) 2 | . 2 4 Largest Inventory Capacity 25 | 8 25 25 Average Capacity 21 | 6 21 25 Most Carried 10 | 5 10 5 Average Carried 6 | 3 7 3 Final Capacity 25 | 8 25 25 Final Carried 6 | 5 6 3 Class Distribution -------------------- 100% | Mutant Dominant Class ---------------- Mutant | -10/Materials Mutant | -9/Materials Resources | -11 -10 -9 ----------- Run | Jun Mat Mat Matter Collected 409 | 230 164 15 Remotely . | . . . Salvage Created 607 | . 552 55 Parts 32 | . 31 1 Haulers Intercepted . | . . . Recyclers Shooed 1 | . 1 . Parts Field Recycled . | . . . Retrieved Matter . | . . . Parts Self-Destructed . | . . . Prevented . | . . . Kills | -11 -10 -9 ------- Run | Jun Mat Mat Combat Hostiles Destroyed 18 | . 17 1 Melee 1 | . 1 . Guns 16 | . 15 1 Classes Destroyed 3 | . 2 1 Swarmer 6 | . 6 . Grunt 11 | . 11 . Sentry 1 | . . 1 Best Kill Streak 3 | . 3 1 Combat Bots Only 3 | . 3 1 Max Kills in Single Turn 1 | . 1 1 Gunslinging . | . . . Exploded . | . . . Melee 1 | . 1 . Uniques/NPCs Destroyed . | . . . Combat | -11 -10 -9 -------- Run | Jun Mat Mat Damage Taken 1666 | . 812 854 Core 527 | . 117 410 Absorbed by Shields . | . . . Core Remaining (%) 76 | 100 53 . Volleys Fired 62 | . 54 8 Largest 2 | . 2 2 Hottest 100 | . 100 100 Shots Fired 114 | . 103 11 Gun 114 | . 103 11 Cannon . | . . . Launcher . | . . . Special . | . . . Kinetic . | . . . Thermal 114 | . 103 11 Explosive . | . . . Electromagnetic . | . . . Robot Hit Streak 7 | . 7 4 Robot Miss Streak 3 | . 3 1 Penetration Max . | . . . Secondary Targets 3 | . 3 . Max Gunslinging Chain 1 | . 1 . Shots Hit Robots 73 | . 64 9 Core Hits 29 | . 27 2 Critical Kills . | . . . Critical Parts Destroyed . | . . . Critical Strikes 4 | . 3 1 Burn 4 | . 3 1 Melee Attacks 13 | . 13 . Impact . | . . . Slashing 13 | . 13 . Piercing . | . . . Sneak Attacks . | . . . Combat Hostiles . | . . . Follow-up Attacks . | . . . Damage Inflicted 879 | . 789 90 Guns 833 | . 744 89 Cannons . | . . . Explosions . | . . . Melee 45 | . 45 . Ramming 1 | . . 1 Kinetic . | . . . Thermal 833 | . 744 89 Explosive . | . . . Electromagnetic . | . . . Impact . | . . . Slashing 45 | . 45 . Piercing . | . . . Highest Corruption 4 | . 4 . Average Corruption 3 | . 3 . Corruption Purged . | . . . Corruption Blocked . | . . . Effects 7 | . 7 . Matter Fused 1 | . 1 . Heat Flow Errors 2 | . 2 . Parts Rejected 1 | . 1 . Data Loss (minor) 2 | . 2 . Misfires 1 | . 1 . Overload Shots . | . . . Overflow Damage . | . . . Projectiles . | . . . Explosions . | . . . Melee . | . . . Knockbacks . | . . . Impact . | . . . Kinetic . | . . . Secondary . | . . . Self-Inflicted Damage . | . . . Shots . | . . . Rammed 2 | . . 2 Targets Rammed 3 | . 1 2 Kicked 1 | . 1 . Crushed . | . . . Highest Temperature 330 | . 330 203 Average Temperature 107 | . 106 114 Received Heat Transfer 735 | . 288 447 Effects 1 | . 1 . Interference 1 | . 1 . Siege Activations . | . . . Robots Corrupted . | . . . Combat Hostiles . | . . . Parts Fried . | . . . Impact Corruptions . | . . . Robots Melted 1 | . 1 . Combat Hostiles 1 | . 1 . Parts Melted 8 | . 6 2 Heat Transferred 2596 | . 2263 333 Parts Sabotaged . | . . . Parts Stolen . | . . . Parts Stripped . | . . . Power Chain Reactions . | . . . Missiles Intercepted . | . . . Alert | -11 -10 -9 ------- Run | Jun Mat Mat Peak Influence 239 | . 239 30 Initial 4 | . . 4 Average 48 | . 54 12 Maximum Alert Level 1 | . 1 . Low Security (%) 98 | 100 97 100 Level 1 1 | . 2 . Level 2 . | . . . Level 3 . | . . . Level 4 . | . . . Level 5 . | . . . High Security . | . . . Max Security . | . . . Squads Dispatched 6 | . 5 1 Investigation 4 | . 4 . Extermination . | . . . Reinforcement 2 | . 1 1 Assault . | . . . Garrison . | . . . Intercept . | . . . Searches Triggered . | . . . Construction Impeded . | . . . Haulers Reinforced . | . . . Active Scanning Responses . | . . . Cargo Convoy Interrupts . | . . . Stealth | -11 -10 -9 --------- Run | Jun Mat Mat Distress Signals 4 | . 1 3 Communications Jammed . | . . . Distress Signals . | . . . Times Spotted 35 | . 29 6 Peak Tracking Total 6 | . 6 5 Tactical Retreats 1 | . 1 . Traps | -11 -10 -9 ------- Run | Jun Mat Mat Traps Triggered 4 | . 4 . Indirectly . | . . . Trap Hack Attempts . | . . . Triggered . | . . . Disarmed . | . . . Reprogrammed . | . . . Reused . | . . . Traps Extracted . | . . . Installed . | . . . Triggered . | . . . Machines | -11 -10 -9 ---------- Run | Jun Mat Mat Machines Disabled . | . . . Max in Single Turn . | . . . Machines Repaired . | . . . Machines Sabotaged . | . . . Overloaded Fab Kills . | . . . Hacking | -11 -10 -9 --------- Run | Jun Mat Mat Machines Accessed 6 | . 6 . Terminals 5 | . 5 . Fabricators . | . . . Repair Stations 1 | . 1 . Recycling Units . | . . . Scanalyzers . | . . . Garrison Access . | . . . Total Hacks 22 | . 22 . Successful 17 | . 17 . Failed 5 | . 5 . Catastrophic 2 | . 2 . Database Lockouts . | . . . Manual . | . . . Terminals 21 | . 21 . Fabricators . | . . . Repair Stations 1 | . 1 . Recycling Units . | . . . Scanalyzers . | . . . Garrison Access . | . . . Terminal Hacks 16 | . 16 . Record 7 | . 7 . Prototype ID Bank 2 | . 2 . Emergency Access Points 2 | . 2 . Dispatch Records 2 | . 2 . Surveillance Status 1 | . 1 . Patrol Status 1 | . 1 . Transport Status 1 | . 1 . Fabricator Hacks . | . . . Repair Station Hacks 1 | . 1 . Refit 1 | . 1 . Recycling Unit Hacks . | . . . Scanalyzer . | . . . Garrison Access Hacks . | . . . Unauthorized Hacks . | . . . Terminals . | . . . Fabricators . | . . . Repair Stations . | . . . Recycling Units . | . . . Scanalyzers . | . . . Garrison Access . | . . . Data Cores Recovered . | . . . Used . | . . . Hacking Detections 4 | . 4 . Full Trace Events 3 | . 3 . Feedback Events . | . . . Feedback Blocked . | . . . Robot Schematics Acquired . | . . . Robots Built . | . . . Authchips . | . . . Time . | . . . Total Robot Build Rating . | . . . Part Schematics Acquired . | . . . Parts Built . | . . . Authchips . | . . . Time . | . . . Total Part Build Rating . | . . . Parts Repaired . | . . . Time . | . . . Parts Recycled . | . . . Recycled Matter . | . . . Retrieved Matter . | . . . Retrieved Components . | . . . Parts Scanalyzed . | . . . Part Schematics Acquired . | . . . Parts Damaged . | . . . Bothacking | -11 -10 -9 ------------ Run | Jun Mat Mat Used RIF Installer . | . . . Robots Hacked . | . . . Non-combat . | . . . Combat . | . . . Robot Hacks Applied . | . . . Relay Couplers Released . | . . . Fabnet Peak Effective % . | . . . Robots Rewired . | . . . Allies Hacked . | . . . Hacks Repelled . | . . . Allies | -11 -10 -9 -------- Run | Jun Mat Mat Total Allies . | . . . Largest Group . | . . . Highest-Rated Group . | . . . Highest-Rated Ally . | . . . Total Orders . | . . . Ally Attacks . | . . . Total Damage . | . . . Kills . | . . . Allies Corrupted . | . . . Allies Melted . | . . . Intel | -11 -10 -9 ------- Run | Jun Mat Mat Robot Analysis Total . | . . . Derelict Logs Recovered . | . . . Drone Launches . | . . . Drone Recoveries . | . . . Exploration | -11 -10 -9 ------------- Run | Jun Mat Mat Turns Passed 2445 | 98 2140 207 Spaces Moved 768 | 99 635 34 Core 44 | 44 . . Treads . | . . . Legs 724 | 55 635 34 Wheels . | . . . Hover . | . . . Flight . | . . . Fastest Speed 50 | 50 120 400 Average Speed 271 | 88 292 408 Slowest Speed 680 | 120 680 680 Overloaded Moves . | . . . Propulsion Burnouts . | . . . Robots Hopped . | . . . Cave-ins Triggered . | . . . Exploration Rate (%) 28 | 4 78 3 Regions Visited 2 Branch Regions . Pre-discovered Areas . | . . . Known Exits Taken . | . . . Unknown Exits Taken 2 | 1 1 . Scrap Searched . | . . . Spaces Dug 6 | . 6 . Terrain Destroyed 6 | . 6 . Melee 6 | . 6 . Projectile . | . . . AOE . | . . . Terrain Rammed . | . . . Walls Destroyed . | . . . Machines Disabled . | . . . Actions | -11 -10 -9 --------- Run | Jun Mat Mat Total 966 | 109 791 66 Wait 61 | . 42 19 Move 766 | 98 634 34 Hop . | . . . Pick Up 25 | 8 17 . Fast Attach . | . . . Attach 12 | 3 7 2 Detach 2 | . 2 . Swap 10 | . 10 . Drop 12 | . 11 1 Fire 62 | . 54 8 Melee 13 | . 13 . Ram 2 | . . 2 Kick 1 | . 1 . Crush . | . . . Escape Stasis . | . . . Rewire . | . . . Trap . | . . . Miscellaneous . | . . . Route ------- -11/Junkyard -10/Materials (discovered 4 exits: [*Mat x2] / [*Min x2]) -9/Materials History --------- Turn | Location | Event 8 | -11/Junkyard | Discovered new exit (range 14) 99 | -11/Junkyard | Entered Materials 288 | -10/Materials | Discovered new exit (range 7) 304 | -10/Materials | Build established: Mutant 408 | -10/Materials | Discovered new exit (range 11) 646 | -10/Materials | Discovered new exit (range 14) 1276 | -10/Materials | Discovered new exit (range 16) 2239 | -10/Materials | Entered another Materials area 2239 | -9/Materials | Evolved 2 slots: Power x2 2422 | -9/Materials | Core integrity fell below 50% 2435 | -9/Materials | Core integrity fell below 20% 2444 | -9/Materials | Lost 6 parts (2p2n2w) 2446 | -9/Materials | Destroyed by G-34 Mercenary with Small Laser Last Messages --------------- 02325_ Y-45 Defender heat damages Imp. Ion Engine. 02326_ Y-45 Defender heat short circuits Hvy. Assault Rifle. 02326_ Heat Sink melted. 02326_ Broken Hvy. Assault Rifle melted. 02326_ Y-45 Defender destroyed. 02329_ Acquired 15 matter. 02357_ W-16 Scout sends out distress signal. 02391_ Lgt. Ion Engine destroyed. 02395_ ALERT: Hostiles spotted, dispatching reinforcements to Terminal M002. 02402_ Aluminum Leg destroyed. 02406_ Datajack destroyed. 02408_ Backup Power I destroyed. 02409_ Aluminum Leg destroyed. 02411_ Slammed into G-34 Mercenary. 02413_ Med. Laser destroyed. 02415_ W-16 Scout sends out distress signal. 02422_ K-01 Serf collects debris. 02425_ Slammed into G-34 Mercenary. 02425_ K-01 Serf collects debris. Map ----- +----------------------------------------------------+ | ?????????????????????????????????????????????????? | | ?????????????????????????????????????????????????? | | ?????????????????????????????????????????????????? | | ?????????????????????????????????????????????????? | | ?????????????????????????????????????????????????? | | ?????????????????????????????????????????????????? | | ?????????????????????????????????????????????????? | | ?????????????????????????????????????????????????? | | ?????????????????????????????????????????????????? | | ?????????????????????????????????????????????????? | | ?????????????????????????????????????????????????? | | ?????????????????????????????????????????????????? | | ?????????????????????????????????????????????????? | | ?????????????????????????????????????????????????? | | ????????????????#+######?????????????????????????? | | ????????????????? ?????????????????????????? | | ?????????????????? ?????????????????????????? | | ??????????????????? ###??????????????????????? | | ???????????????????? #??????????????????????? | | ????????????????????? +??????????????????????? | | ?????????????????????? #??????????????????????? | | ??????????????????????#w #??????????????????????? | | ??????????????????????# #??????????????????????? | | ??????????????????????# #????????####??????????? | | ??????????????????????# ####### #??????????? | | ???????????????######## g@%k #??????????? | | ???????????????# # g + "????????? | | ???????????????# """ # #??????????? | | ???????????????#| """ + ####### #??????????? | | ???????????????# """ # [ #????????####??????????? | | ???????????????# %=# #??????????????????????? | | ???????????????# = # #??????????????????????? | | ???????????????############??????????????????????? | | ?????????????????????????????????????????????????? | | ?????????????????????????????????????????????????? | | ?????????????????????????????????????????????????? | | ?????????????????????????????????????????????????? | | ?????????????????????????????????????????????????? | | ?????????????????????????????????????????????????? | | ?????????????????????????????????????????????????? | | ?????????????????????????????????????????????????? | | ?????????????????????????????????????????????????? | | ?????????????????????????????????????????????????? | | ?????????????????????????????????????????????????? | | ?????????????????????????????????????????????????? | | ?????????????????????????????????????????????????? | | | | | | | | | +----------------------------------------------------+ Best States ------------- Heat Dissipation 28 Energy Generation 14 Energy Capacity 125 Matter Stores 300 Matter Capacity 300 Sight Range 16 Terrain Scan Density 10 Armor Coverage 150 Evasion (%) 55 Item Schematics ----------------- None Robot Schematics ------------------ None Fabricated ------------ Nothing Alien Tech Used ----------------- None Achievements -------------- None Challenges ------------ None Game ------ Seed ComponentGlidesysSteel Manual? 0 Play Time 00:19:24 Cumulative 4.2 hours Start 2024.02.20 @ 11:29:03 End 2024.02.27 @ 19:25:38 Sessions 2 Manual Loads 0 Difficulty Rogue Special Mode None Game No. 7 Rogue 7 Adventurer 0 Explorer 0 Win Type - Total 0 Types 0/0/0/0/0/0/0/0/0 Lore% 2 Gallery% 8 Achievement% 9 Wizard Run 0 Options --------- ASCII 0 Keyboard 1 Movement Arrows Keybinds 0 Fullscreen 1 Font 18/SmallcapsGlow Map View 76x50 Tactical HUD 1 Map Filters NONE Filters NONE Steam 1 RUN: e2d448f6-5ed4-43ca-a399-ebe63d6a1534